fUSD/lending_fUSD_20250115
["ID","MTS","AMOUNT","RATE_DAILY","PERIOD"]
[349033988,1736945464754,-500.0,0.00020998,2]
[349033989,1736945464764,-500.0,0.00020998,2]
[349033990,1736945464773,-500.0,0.00020998,2]
[349033991,1736945464784,-500.0,0.00020998,2]
[349033992,1736945464795,-500.0,0.00020998,2]
[349033993,1736945464805,-500.0,0.00020998,2]
[349033994,1736945464815,-500.0,0.00020998,2]
[349033995,1736945464825,-500.0,0.00020998,2]
[349033996,1736945464834,-500.0,0.00020998,2]
[349033997,1736945464845,-500.0,0.00020998,2]
[349033998,1736945464856,-500.0,0.00020998,2]
[349033999,1736945464866,-500.0,0.00020998,2]
[349034000,1736945464878,-4426.0,0.00021,3]
[349034001,1736945464888,-800.0,0.00021,2]
[349034002,1736945464899,-265.08,0.00021067,2]
[349034003,1736945464910,-166.75659627,0.00021114,2]
[349034004,1736945464922,-150.0,0.00021197,2]
[349034005,1736945464933,-500.0,0.00021241,2]
[349034006,1736945464943,-500.0,0.00021241,2]
[349034007,1736945464953,-500.0,0.00021241,2]
[349034008,1736945464964,-500.0,0.00021241,2]
[349034009,1736945464974,-629.37,0.00021242,2]
[349034010,1736945464985,-186.33,0.00021242,2]
[349034011,1736945464995,-500.0,0.00021242,2]
[349034012,1736945465006,-500.0,0.00021242,2]
[349034013,1736945465016,-500.0,0.00021242,2]
[349034014,1736945465026,-500.0,0.00021242,2]
[349034015,1736945465037,-500.0,0.00021242,2]
[349034016,1736945465049,-731.57,0.00021242,2]
[349034017,1736945465061,-500.0,0.00021242,2]
[349034018,1736945465212,-562.68,0.00021242,2]
[349034019,1736945465223,-500.0,0.00021242,2]
[349034020,1736945465233,-500.0,0.00021242,2]
[349034021,1736945465243,-500.0,0.00021264,2]
[349034022,1736945465253,-500.0,0.00021264,2]
[349034023,1736945465263,-500.0,0.00021264,2]
[349034024,1736945465274,-500.0,0.00021264,2]
[349034025,1736945465284,-500.0,0.00021264,2]
[349034026,1736945465294,-500.0,0.00021264,2]
[349034027,1736945465308,-658.67,0.00021264,2]
[349034028,1736945465319,-500.0,0.00021264,2]
[349034029,1736945465330,-500.0,0.00021264,2]
[349034030,1736945465340,-500.0,0.00021264,2]
[349034031,1736945465349,-500.0,0.00021264,2]
[349034032,1736945465363,-500.0,0.00021264,2]
[349034033,1736945465374,-500.0,0.00021264,2]
[349034034,1736945465384,-500.0,0.00021264,2]
[349034035,1736945465395,-500.0,0.00021264,2]
[349034036,1736945465405,-850.18,0.00021264,2]
[349034037,1736945465416,-500.0,0.00021264,2]
[349034038,1736945465426,-763.0,0.00021264,2]
[349034039,1736945465438,-500.0,0.00021264,2]
[349034040,1736945465449,-500.0,0.00021264,2]
[349034041,1736945465459,-500.0,0.00021264,2]
[349034042,1736945465469,-500.0,0.00021264,2]
[349034043,1736945465479,-500.0,0.00021265,2]
[349034044,1736945465489,-500.0,0.00021265,2]
[349034045,1736945465499,-500.0,0.00021265,2]
[349034046,1736945465509,-1676.5,0.00021265,2]
[349034047,1736945465519,-500.0,0.00021265,2]
[349034048,1736945465529,-588.16297662,0.00021272,2]
[349034049,1736945465539,-500.0,0.00021272,2]
[349034050,1736945465549,-629.07,0.00021272,2]
[349034051,1736945465558,-500.0,0.00021272,2]
[349034052,1736945465568,-500.0,0.00021272,2]
[349034053,1736945465579,-500.0,0.00021272,2]
[349034054,1736945465589,-500.0,0.00021272,2]
[349034055,1736945465599,-500.0,0.00021272,2]
[349034056,1736945465609,-500.0,0.00021272,2]
[349034057,1736945465618,-500.0,0.00021272,2]
[349034058,1736945465629,-500.0,0.00021272,2]
[349034059,1736945465638,-500.0,0.00021272,2]
[349034060,1736945465648,-500.0,0.00021272,2]
[349034061,1736945465658,-500.0,0.00021272,2]
[349034062,1736945465669,-500.0,0.00021272,2]
[349034063,1736945465679,-500.0,0.00021272,2]
[349034064,1736945465689,-500.0,0.00021272,2]
[349034065,1736945465698,-1270.55910387,0.00021279,2]
[349034066,1736945465708,-500.0,0.00021515,2]
[349034067,1736945465718,-500.0,0.00021515,2]
[349034068,1736945465728,-500.0,0.00021515,2]
[349034069,1736945465738,-500.0,0.00021515,2]
[349034070,1736945465748,-553.62,0.00021516,2]
[349034071,1736945465757,-500.0,0.00021516,2]
[349034072,1736945465767,-500.0,0.00021516,2]
[349034073,1736945465777,-500.0,0.00021516,2]
[349034074,1736945465787,-731.57,0.00021516,2]
[349034075,1736945465796,-500.0,0.00021516,2]
[349034076,1736945465806,-500.0,0.00021516,2]
[349034077,1736945465816,-500.0,0.00021516,2]
[349034078,1736945465826,-500.0,0.00021538,2]
[349034079,1736945465836,-640.12,0.00021538,2]
[349034080,1736945465845,-500.0,0.00021538,2]
[349034081,1736945465856,-292.48,0.00021538,2]
[349034082,1736945465866,-500.0,0.00021538,2]
[349034083,1736945465876,-500.0,0.00021538,2]
[349034084,1736945465886,-658.67,0.00021538,2]
[349034085,1736945465896,-296.32,0.00021538,2]
[349034086,1736945465906,-500.0,0.00021538,2]
[349034087,1736945465918,-500.0,0.00021538,2]
[349034088,1736945465928,-500.0,0.00021538,2]
[349034089,1736945465940,-500.0,0.00021538,2]
[349034090,1736945465951,-377.92,0.00021538,2]
[349034091,1736945465961,-500.0,0.00021538,2]
[349034092,1736945465972,-500.0,0.00021538,2]
[349034093,1736945465983,-850.18,0.00021538,2]
[349034094,1736945465992,-500.0,0.00021538,2]
[349034095,1736945466002,-763.0,0.00021538,2]
[349034096,1736945466011,-500.0,0.00021538,2]
[349034097,1736945466021,-445.14,0.00021538,2]
[349034098,1736945466031,-500.0,0.00021538,2]
[349034099,1736945466043,-500.0,0.00021538,2]
[349034100,1736945466052,-500.0,0.00021539,2]
[349034101,1736945466061,-500.0,0.00021539,2]
[349034102,1736945466072,-163.15969576,0.00021539,2]
[349034103,1736945466082,-1676.5,0.00021539,2]
[349034104,1736945466092,-500.0,0.00021539,2]
[349034105,1736945466102,-500.0,0.00021546,2]
[349034106,1736945466112,-500.0,0.00021546,2]
[349034107,1736945466122,-500.0,0.00021546,2]
[349034108,1736945466132,-500.0,0.00021546,2]
[349034109,1736945466142,-435.72,0.00021546,2]
[349034110,1736945466151,-500.0,0.00021546,2]
[349034111,1736945466162,-500.0,0.00021546,2]
[349034112,1736945466172,-500.0,0.00021546,2]
[349034113,1736945466183,-500.0,0.00021546,2]
[349034114,1736945466192,-500.0,0.00021546,2]
[349034115,1736945466203,-500.0,0.00021546,2]
[349034116,1736945466212,-500.0,0.00021546,2]
[349034117,1736945466223,-500.0,0.00021546,2]
[349034118,1736945466233,-500.0,0.00021546,2]
[349034119,1736945466243,-500.0,0.00021546,2]
[349034120,1736945466252,-3000.0,0.000216,2]
[349034121,1736945466262,-150.0,0.00021698,5]
[349034122,1736945466272,-150.0,0.00021698,5]
[349034123,1736945466282,-150.0,0.00021702,2]
[349034124,1736945466292,-500.0,0.00021789,2]
[349034125,1736945466301,-500.0,0.00021789,2]
[349034126,1736945466311,-500.0,0.00021789,2]
[349034127,1736945466320,-241.09,0.00021789,2]
[349034128,1736945466330,-603.1,0.0002179,2]
[349034129,1736945466341,-500.0,0.0002179,2]
[349034130,1736945466351,-500.0,0.0002179,2]
[349034131,1736945466364,-731.57,0.0002179,2]
[349034132,1736945466373,-500.0,0.0002179,2]
[349034133,1736945466383,-500.0,0.0002179,2]
[349034134,1736945466393,-500.0,0.0002179,2]
[349034135,1736945466407,-451.85,0.00021812,2]
[349034136,1736945466418,-500.0,0.00021812,2]
[349034137,1736945466428,-500.0,0.00021812,2]
[349034138,1736945466439,-500.0,0.00021812,2]
[349034139,1736945466450,-658.67,0.00021812,2]
[349034140,1736945466461,-568.13,0.00021812,2]
[349034141,1736945466471,-500.0,0.00021812,2]
[349034142,1736945466481,-500.0,0.00021812,2]
[349034143,1736945466491,-236.18,0.00021812,2]
[349034144,1736945466501,-343.13,0.00021812,2]
[349034145,1736945466511,-500.0,0.00021812,2]
[349034146,1736945466520,-500.0,0.00021812,2]
[349034147,1736945466531,-850.18,0.00021812,2]
[349034148,1736945466541,-500.0,0.00021812,2]
[349034149,1736945466551,-763.0,0.00021812,2]
[349034150,1736945466560,-500.0,0.00021812,2]
[349034151,1736945466570,-500.0,0.00021812,2]
[349034152,1736945466580,-500.0,0.00021812,2]
[349034153,1736945466590,-500.0,0.00021813,2]
[349034154,1736945466599,-500.0,0.00021813,2]
[349034155,1736945466609,-1676.5,0.00021813,2]
[349034156,1736945466618,-500.0,0.00021813,2]
[349034157,1736945466628,-500.0,0.0002182,2]
[349034158,1736945466637,-500.0,0.0002182,2]
[349034159,1736945466647,-602.16,0.0002182,2]
[349034160,1736945466657,-500.0,0.0002182,2]
[349034161,1736945466666,-500.0,0.0002182,2]
[349034162,1736945466677,-500.0,0.0002182,2]
[349034163,1736945466686,-500.0,0.0002182,2]
[349034164,1736945466696,-522.3,0.0002182,2]
[349034165,1736945466705,-500.0,0.0002182,2]
[349034166,1736945466715,-581.58,0.0002182,2]
[349034167,1736945466725,-597.00442505,0.0002182,2]
[349034168,1736945466734,-500.0,0.0002182,2]
[349034169,1736945466744,-500.0,0.0002182,2]
[349034170,1736945466754,-798.25703869,0.0002187,2]
[349034171,1736945466763,-1000.0,0.0002187,2]
[349034172,1736945466772,-353.82,0.00021878,2]
[349034173,1736945466782,-506.01,0.00021899,2]
[349034174,1736945466792,-31130.77537869,0.000219,5]
[349034175,1736945466802,-308.81,0.000219,31]
[349034176,1736945466811,-308.81,0.000219,31]
[349034177,1736945466821,-308.81,0.000219,31]
[349034178,1736945466831,-308.81,0.000219,31]
[349034179,1736945466840,-308.81,0.000219,31]
[349034180,1736945466850,-308.81,0.000219,31]
[349034181,1736945466859,-308.81,0.000219,31]
[349034182,1736945466868,-308.81,0.000219,31]
[349034183,1736945466878,-308.81,0.000219,31]
[349034184,1736945466887,-308.81,0.000219,31]
[349034185,1736945466896,-308.81,0.000219,31]
[349034186,1736945466906,-308.81,0.000219,31]
[349034187,1736945466916,-308.81,0.000219,31]
[349034188,1736945466926,-308.81,0.000219,31]
[349034189,1736945466936,-308.81,0.000219,31]
[349034190,1736945466946,-308.81,0.000219,31]
[349034191,1736945466957,-500.0,0.00021917,2]
[349034192,1736945466966,-500.0,0.00021917,2]
[349034193,1736945466976,-500.0,0.00021917,2]
[349034194,1736945466985,-500.0,0.00021917,2]
[349034195,1736945466995,-500.0,0.00021917,2]
[349034196,1736945467004,-400.0,0.0002197,2]
[349034197,1736945467014,-1000.0,0.0002197,2]
[349034198,1736945467023,-99577.05130414,0.00022,3]
[349034199,1736945467033,-177.0,0.00022,2]
[349034200,1736945467042,-200420.38383,0.00022,2]
[349034201,1736945467053,-166.75659627,0.00022007,2]
[349034202,1736945467063,-500.0,0.00022063,2]
[349034203,1736945467073,-500.0,0.00022063,2]
[349034204,1736945467083,-500.0,0.00022063,2]
[349034205,1736945467093,-321.47,0.00022064,2]
[349034206,1736945467103,-500.0,0.00022064,2]
[349034207,1736945467112,-731.57,0.00022064,2]
[349034208,1736945467121,-500.0,0.00022064,2]
[349034209,1736945467131,-500.0,0.00022064,2]
[349034210,1736945467143,-500.0,0.00022064,2]
[349034211,1736945467153,-500.0,0.00022086,2]
[349034212,1736945467163,-500.0,0.00022086,2]
[349034213,1736945467173,-500.0,0.00022086,2]
[349034214,1736945467184,-658.67,0.00022086,2]
[349034215,1736945467193,-500.0,0.00022086,2]
[349034216,1736945467203,-225.21,0.00022086,2]
[349034217,1736945467214,-500.0,0.00022086,2]
[349034218,1736945467224,-850.18,0.00022086,2]
[349034219,1736945467234,-500.0,0.00022086,2]
[349034220,1736945467244,-763.0,0.00022086,2]
[349034221,1736945467254,-500.0,0.00022086,2]
[349034222,1736945467263,-500.0,0.00022086,2]
[349034223,1736945467273,-500.0,0.00022086,2]
[349034224,1736945467283,-500.0,0.00022087,2]
[349034225,1736945467293,-502.64,0.00022087,2]
[349034226,1736945467302,-1676.5,0.00022087,2]
[349034227,1736945467312,-500.0,0.00022087,2]
[349034228,1736945467322,-500.0,0.00022094,2]
[349034229,1736945467331,-500.0,0.00022094,2]
[349034230,1736945467340,-500.0,0.00022094,2]
[349034231,1736945467349,-500.0,0.00022094,2]
[349034232,1736945467364,-500.0,0.00022094,2]
[349034233,1736945467373,-500.0,0.00022094,2]
[349034234,1736945467383,-500.0,0.00022094,2]
[349034235,1736945467392,-500.0,0.00022094,2]
[349034236,1736945467403,-500.0,0.00022094,2]
[349034237,1736945467412,-1678.0,0.00022135,2]
[349034238,1736945467422,-1270.55910387,0.00022176,2]
[349034239,1736945467433,-2708.06,0.000222,7]
[349034240,1736945467443,-150.0,0.00022206,2]
[349034241,1736945467453,-169.87,0.00022237,2]
[349034242,1736945467463,-10000.0,0.00022254,5]
[349034243,1736945467473,-205.18,0.00022276,2]
[349034244,1736945467483,-500.0,0.00022337,2]
[349034245,1736945467493,-629.01,0.00022337,2]
[349034246,1736945467504,-500.0,0.00022337,2]
[349034247,1736945467513,-500.0,0.00022338,2]
[349034248,1736945467524,-731.57,0.00022338,2]
[349034249,1736945467535,-639.62,0.00022338,2]
[349034250,1736945467545,-500.0,0.00022338,2]
[349034251,1736945467556,-500.0,0.00022338,2]
[349034252,1736945467567,-500.0,0.0002236,2]
[349034253,1736945467576,-500.0,0.0002236,2]
[349034254,1736945467585,-500.0,0.0002236,2]
[349034255,1736945467595,-658.67,0.0002236,2]
[349034256,1736945467604,-500.0,0.0002236,2]
[349034257,1736945467613,-179.61,0.0002236,2]
[349034258,1736945467623,-850.18,0.0002236,2]
[349034259,1736945467633,-500.87315628,0.0002236,2]
[349034260,1736945467642,-763.0,0.0002236,2]
[349034261,1736945467651,-500.0,0.0002236,2]
[349034262,1736945467660,-500.0,0.0002236,2]
[349034263,1736945467670,-500.0,0.0002236,2]
[349034264,1736945467680,-500.0,0.00022361,2]
[349034265,1736945467689,-1676.5,0.00022361,2]
[349034266,1736945467698,-500.0,0.00022361,2]
[349034267,1736945467708,-1678.0,0.00022363,2]
[349034268,1736945467717,-500.0,0.00022368,2]
[349034269,1736945467727,-303.42504599,0.00022368,2]
[349034270,1736945467736,-500.0,0.00022368,2]
[349034271,1736945467745,-500.0,0.00022368,2]
[349034272,1736945467755,-482.31508712,0.00022368,2]
[349034273,1736945467764,-500.0,0.00022368,2]
[349034274,1736945467774,-225.99,0.00022368,2]
[349034275,1736945467785,-500.0,0.00022368,2]
[349034276,1736945467795,-500.0,0.00022368,2]
[349034277,1736945467805,-366.99,0.00022483,2]
[349034278,1736945467815,-1678.0,0.00022591,2]
[349034279,1736945467825,-500.0,0.00022611,2]
[349034280,1736945467834,-500.0,0.00022611,2]
[349034281,1736945467843,-500.0,0.00022612,2]
[349034282,1736945467852,-731.57,0.00022612,2]
[349034283,1736945467862,-500.0,0.00022612,2]
[349034284,1736945467871,-500.0,0.00022612,2]
[349034285,1736945467880,-160.38,0.00022615,2]
[349034286,1736945467890,-500.0,0.00022634,2]
[349034287,1736945467899,-500.0,0.00022634,2]
[349034288,1736945467909,-500.0,0.00022634,2]
[349034289,1736945467920,-658.67,0.00022634,2]
[349034290,1736945467929,-500.0,0.00022634,2]
[349034291,1736945467938,-240.09,0.00022634,2]
[349034292,1736945467947,-850.18,0.00022634,2]
[349034293,1736945467956,-763.0,0.00022634,2]
[349034294,1736945467966,-500.0,0.00022634,2]
[349034295,1736945467975,-500.0,0.00022634,2]
[349034296,1736945467984,-500.0,0.00022634,2]
[349034297,1736945467993,-221.75,0.00022635,2]
[349034298,1736945468002,-1676.5,0.00022635,2]
[349034299,1736945468011,-402.05,0.00022635,2]
[349034300,1736945468021,-500.0,0.00022642,2]
[349034301,1736945468030,-553.2,0.00022642,2]
[349034302,1736945468040,-572.99378,0.00022642,2]
[349034303,1736945468049,-500.0,0.00022642,2]
[349034304,1736945468058,-500.0,0.00022642,2]
[349034305,1736945468068,-500.0,0.00022642,2]
[349034306,1736945468078,-150.0,0.00022711,2]
[349034307,1736945468087,-1678.0,0.00022819,2]
[349034308,1736945468096,-622.47085634,0.00022819,2]
[349034309,1736945468106,-152.0,0.00022844,3]
[349034310,1736945468116,-500.0,0.00022885,2]
[349034311,1736945468126,-500.0,0.00022885,2]
[349034312,1736945468136,-500.0,0.00022886,2]
[349034313,1736945468145,-731.57,0.00022886,2]
[349034314,1736945468155,-181.49,0.00022886,2]
[349034315,1736945468164,-40762.43171931,0.00022899,14]
[349034316,1736945468174,-984.0,0.00022899,2]
[349034317,1736945468184,-4400.0,0.000229,8]
[349034318,1736945468193,-166.75659627,0.00022901,2]
[349034319,1736945468203,-500.0,0.00022908,2]
[349034320,1736945468214,-500.0,0.00022908,2]
[349034321,1736945468223,-500.0,0.00022908,2]
[349034322,1736945468233,-658.67,0.00022908,2]
[349034323,1736945468243,-500.0,0.00022908,2]
[349034324,1736945468253,-850.18,0.00022908,2]
[349034325,1736945468262,-763.0,0.00022908,2]
[349034326,1736945468272,-500.0,0.00022908,2]
[349034327,1736945468282,-574.69625,0.00022908,2]
[349034328,1736945468291,-500.0,0.00022908,2]
[349034329,1736945468300,-1676.5,0.00022909,2]
[349034330,1736945468311,-500.0,0.00022916,2]
[349034331,1736945468320,-389.16,0.00022916,2]
[349034332,1736945468329,-500.0,0.00022916,2]
[349034333,1736945468339,-257.56,0.00022916,2]
[349034334,1736945468348,-500.0,0.00022999,2]
[349034335,1736945468360,-528.01,0.00022999,2]
[349034336,1736945468370,-506.01,0.00022999,2]
[349034337,1736945468379,-506.01,0.00022999,2]
[349034338,1736945468389,-125550.28484467,0.00023,4]
[349034339,1736945468399,-850.0,0.00023,2]
[349034340,1736945468409,-490340.34314699,0.00023,2]
[349034341,1736945468420,-2000.0,0.00023,2]
[349034342,1736945468430,-200.0,0.00023,2]
[349034343,1736945468439,-609.98,0.00023001,2]
[349034344,1736945468448,-177.0,0.00023014,2]
[349034345,1736945468458,-1678.0,0.00023047,2]
[349034346,1736945468467,-1270.55910387,0.00023072,2]
[349034347,1736945468477,-500.0,0.00023136,2]
[349034348,1736945468486,-239.37429938,0.00023159,2]
[349034349,1736945468496,-500.0,0.00023159,2]
[349034350,1736945468505,-500.0,0.0002316,2]
[349034351,1736945468515,-731.57,0.0002316,2]
[349034352,1736945468525,-500.0,0.00023182,2]
[349034353,1736945468536,-500.0,0.00023182,2]
[349034354,1736945468546,-500.0,0.00023182,2]
[349034355,1736945468557,-658.67,0.00023182,2]
[349034356,1736945468567,-500.0,0.00023182,2]
[349034357,1736945468577,-850.18,0.00023182,2]
[349034358,1736945468587,-763.0,0.00023182,2]
[349034359,1736945468597,-500.0,0.00023182,2]
[349034360,1736945468607,-500.0,0.00023182,2]
[349034361,1736945468618,-1676.5,0.00023183,2]
[349034362,1736945468628,-500.0,0.0002319,2]
[349034363,1736945468637,-500.0,0.0002319,2]
[349034364,1736945468646,-150.0,0.00023216,2]
[349034365,1736945468656,-2000.0,0.0002323,2]
[349034366,1736945468667,-200.0,0.0002323,2]
[349034367,1736945468676,-500.0,0.00023273,2]
[349034368,1736945468685,-1678.0,0.00023275,2]
[349034369,1736945468694,-2708.06,0.000233,7]
[349034370,1736945468704,-1000.0,0.000234,2]
[349034371,1736945468853,-462.0,0.000234,2]
[349034372,1736945468862,-365.0,0.000234,2]
[349034373,1736945468872,-500.0,0.0002341,2]
[349034374,1736945468881,-500.0,0.00023425,120]
[349034375,1736945468891,-200.0,0.00023425,120]
[349034376,1736945468900,-500.0,0.00023433,2]
[349034377,1736945468909,-500.0,0.00023434,2]
[349034378,1736945468919,-731.57,0.00023434,2]
[349034379,1736945468929,-500.0,0.00023456,2]
[349034380,1736945468939,-500.0,0.00023456,2]
[349034381,1736945468948,-500.0,0.00023456,2]
[349034382,1736945468957,-658.67,0.00023456,2]
[349034383,1736945468966,-500.0,0.00023456,2]
[349034384,1736945468975,-850.18,0.00023456,2]
[349034385,1736945468984,-763.0,0.00023456,2]
[349034386,1736945468994,-155.08,0.00023456,2]
[349034387,1736945469004,-500.0,0.00023456,2]
[349034388,1736945469013,-1676.5,0.00023457,2]
[349034389,1736945469022,-2000.0,0.00023462,2]
[349034390,1736945469032,-200.0,0.00023462,2]
[349034391,1736945469042,-500.0,0.00023464,2]
[349034392,1736945469051,-500.0,0.00023464,2]
[349034393,1736945469061,-333.02,0.0002349,2]
[349034394,1736945469071,-1678.0,0.00023504,2]
[349034395,1736945469081,-500.0,0.00023547,2]
[349034396,1736945469090,-1058.0,0.0002356,2]
[349034397,1736945469099,-500.0,0.00023644,2]
[349034398,1736945469110,-500.0,0.00023684,2]
[349034399,1736945469120,-2000.0,0.00023697,2]
[349034400,1736945469129,-200.0,0.00023697,2]
[349034401,1736945469139,-500.0,0.00023707,2]
[349034402,1736945469149,-500.0,0.00023708,2]
[349034403,1736945469159,-731.57,0.00023708,2]
[349034404,1736945469169,-150.0,0.0002372,2]
[349034405,1736945469179,-528.01,0.00023725,2]
[349034406,1736945469189,-506.01,0.00023725,2]
[349034407,1736945469199,-999.0,0.00023726,7]
[349034408,1736945469209,-999.0,0.00023726,7]
[349034409,1736945469221,-999.0,0.00023726,7]
[349034410,1736945469231,-999.0,0.00023726,7]
[349034411,1736945469242,-999.0,0.00023726,7]
[349034412,1736945469252,-999.0,0.00023726,7]
[349034413,1736945469262,-999.0,0.00023726,7]
[349034414,1736945469272,-999.0,0.00023726,7]
[349034415,1736945469282,-999.0,0.00023726,7]
[349034416,1736945469291,-999.0,0.00023726,7]
[349034417,1736945469301,-999.0,0.00023726,7]
[349034418,1736945469311,-999.0,0.00023726,7]
[349034419,1736945469321,-999.0,0.00023726,7]
[349034420,1736945469331,-999.0,0.00023726,7]
[349034421,1736945469341,-999.0,0.00023726,7]
[349034422,1736945469352,-999.0,0.00023726,7]
[349034423,1736945469367,-999.0,0.00023726,7]
[349034424,1736945469378,-999.0,0.00023726,7]
[349034425,1736945469392,-999.0,0.00023726,7]
[349034426,1736945469404,-1019.0,0.00023726,7]
[349034427,1736945469414,-500.0,0.0002373,2]
[349034428,1736945469425,-500.0,0.0002373,2]
[349034429,1736945469437,-500.0,0.0002373,2]
[349034430,1736945469447,-658.67,0.0002373,2]
[349034431,1736945469457,-500.0,0.0002373,2]
[349034432,1736945469466,-850.18,0.0002373,2]
[349034433,1736945469476,-763.0,0.0002373,2]
[349034434,1736945469485,-500.0,0.0002373,2]
[349034435,1736945469495,-1676.5,0.00023731,2]
[349034436,1736945469504,-500.0,0.00023738,2]
[349034437,1736945469514,-324.88,0.00023738,2]
[349034438,1736945469524,-2110.0,0.000238,2]
[349034439,1736945469534,-500.0,0.00023821,2]
[349034440,1736945469543,-317.96,0.00023836,2]
[349034441,1736945469554,-820.0,0.00023861,2]
[349034442,1736945469565,-3979.0,0.00023861,2]
[349034443,1736945469576,-537.0,0.00023861,2]
[349034444,1736945469585,-150.0,0.00023861,2]
[349034445,1736945469595,-150.0,0.00023861,2]
[349034446,1736945469604,-1174.0,0.00023861,2]
[349034447,1736945469613,-3898.0,0.00023861,2]
[349034448,1736945469623,-9628.0,0.00023861,2]
[349034449,1736945469633,-1000.0,0.000239,2]
[349034450,1736945469643,-2000.0,0.00023934,2]
[349034451,1736945469653,-200.0,0.00023934,2]
[349034452,1736945469662,-155.64,0.0002395,2]
[349034453,1736945469673,-500.0,0.00023958,2]
[349034454,1736945469682,-1270.55910387,0.00023969,2]
[349034455,1736945469691,-500.0,0.00023981,2]
[349034456,1736945469701,-500.0,0.00023982,2]
[349034457,1736945469710,-731.57,0.00023982,2]
[349034458,1736945469722,-8554.51842432,0.00024,2]
[349034459,1736945469732,-500.0,0.00024004,2]
[349034460,1736945469743,-500.0,0.00024004,2]
[349034461,1736945469752,-500.0,0.00024004,2]
[349034462,1736945469762,-658.67,0.00024004,2]
[349034463,1736945469771,-500.0,0.00024004,2]
[349034464,1736945469781,-850.18,0.00024004,2]
[349034465,1736945469791,-763.0,0.00024004,2]
[349034466,1736945469800,-500.0,0.00024004,2]
[349034467,1736945469810,-1676.5,0.00024005,2]
[349034468,1736945469820,-405.29,0.00024012,2]
[349034469,1736945469830,-500.0,0.00024095,2]
[349034470,1736945469839,-903.8311642,0.00024108,2]
[349034471,1736945469848,-353.82,0.00024142,2]
[349034472,1736945469858,-1434.0,0.000242,2]
[349034473,1736945469867,-150.0,0.00024225,2]
[349034474,1736945469877,-297.21,0.00024255,2]
[349034475,1736945469886,-371.12,0.00024256,2]
[349034476,1736945469896,-731.57,0.00024256,2]
[349034477,1736945469905,-500.0,0.00024278,2]
[349034478,1736945469915,-500.0,0.00024278,2]
[349034479,1736945469925,-649.88,0.00024278,2]
[349034480,1736945469935,-658.67,0.00024278,2]
[349034481,1736945469945,-164.54,0.00024278,2]
[349034482,1736945469954,-850.18,0.00024278,2]
[349034483,1736945469963,-763.0,0.00024278,2]
[349034484,1736945469973,-500.0,0.00024278,2]
[349034485,1736945469982,-1676.5,0.00024279,2]
[349034486,1736945469992,-2110.0,0.000243,2]
[349034487,1736945470002,-173.51,0.0002433,2]